{"text_format":"2","workbook":"xlsx","n_sheets":5,"sheets":["Deltagere","7 deltagere","6 deltagere","5 deltagere","4 deltagere"],"not_rendered":{"charts":0,"images":1,"macros":0,"external_links":0,"defined_names":0,"comments":0,"pivot_tables":0},"unopened":[],"bounds":{"document_bytes":16777216,"sheet_cells":100000,"run_cost":"one","rows_first":2000,"rows_last":500,"rows_between":2000,"halvings":0,"cell_chars":16384,"cell_head_chars":4096},"cells_cut":0,"cells_raw":0,"read":"whole","date_system":"1900"}

{"sheet":"Deltagere","index":0,"n_rows":32,"n_cols":4,"rows_kept":32,"cut":false,"hidden":false,"merged":[[2,1,2,4],[3,1,3,4],[4,1,4,4]]}
[]
[]
[null,"Stævnegenerator"]
[null,"Børneturneringen"]
[null,"Forår 2013"]
{"$rows_empty":15}
[null,null,"Årgang","U8 Drenge pulje 2"]
[null,null,"Dato","Lørdag den 27. april 2013"]
[]
[]
[]
[null,null,"Hold 1","hold 1"]
[null,null,"Hold 2","hold 2"]
[null,null,"Hold 3","hold 3"]
[null,null,"Hold 4","hold 4"]
[null,null,"Hold 5","hold 5"]
[null,null,"Hold 6","hold 6"]
[null,null,"Hold 7","hold 7"]

{"sheet":"7 deltagere","index":1,"n_rows":27,"n_cols":6,"rows_kept":27,"cut":false,"hidden":false,"merged":[[16,1,16,2],[17,1,17,2]]}
{"$rows_empty":16}
[null,{"$f":"Deltagere!D21","v":"U8 Drenge pulje 2"}]
[null,{"$f":"Deltagere!D22","v":"Lørdag den 27. april 2013"}]
[]
[]
[null,"Bane 1",null,null,"Bane 2"]
[null,{"$f":"Deltagere!D26","v":"hold 1"},{"$f":"Deltagere!D27","v":"hold 2"},null,{"$f":"Deltagere!D28","v":"hold 3"},{"$f":"Deltagere!D29","v":"hold 4"}]
[null,{"$f":"Deltagere!D30","v":"hold 5"},{"$f":"Deltagere!D31","v":"hold 6"},null,{"$f":"Deltagere!D32","v":"hold 7"},{"$f":"Deltagere!D26","v":"hold 1"}]
[null,{"$f":"Deltagere!D27","v":"hold 2"},{"$f":"Deltagere!D28","v":"hold 3"},null,{"$f":"Deltagere!D29","v":"hold 4"},{"$f":"Deltagere!D30","v":"hold 5"}]
[null,{"$f":"Deltagere!D31","v":"hold 6"},{"$f":"Deltagere!D32","v":"hold 7"},null,{"$f":"Deltagere!D28","v":"hold 3"},{"$f":"Deltagere!D26","v":"hold 1"}]
[null,{"$f":"Deltagere!D29","v":"hold 4"},{"$f":"Deltagere!D27","v":"hold 2"},null,{"$f":"Deltagere!D30","v":"hold 5"},{"$f":"Deltagere!D32","v":"hold 7"}]
[null,{"$f":"Deltagere!D31","v":"hold 6"},{"$f":"Deltagere!D26","v":"hold 1"}]

{"sheet":"6 deltagere","index":2,"n_rows":26,"n_cols":6,"rows_kept":26,"cut":false,"hidden":false,"merged":[[16,1,16,2],[17,1,17,2]]}
{"$rows_empty":16}
[null,{"$f":"Deltagere!D21","v":"U8 Drenge pulje 2"}]
[null,{"$f":"Deltagere!D22","v":"Lørdag den 27. april 2013"}]
[]
[]
[null,"Bane 1",null,null,"Bane 2"]
[null,{"$f":"Deltagere!D26","v":"hold 1"},{"$f":"Deltagere!D27","v":"hold 2"},null,{"$f":"Deltagere!D28","v":"hold 3"},{"$f":"Deltagere!D29","v":"hold 4"}]
[null,{"$f":"Deltagere!D30","v":"hold 5"},{"$f":"Deltagere!D31","v":"hold 6"},null,{"$f":"Deltagere!D29","v":"hold 4"},{"$f":"Deltagere!D27","v":"hold 2"}]
[null,{"$f":"Deltagere!D28","v":"hold 3"},{"$f":"Deltagere!D30","v":"hold 5"},null,{"$f":"Deltagere!D31","v":"hold 6"},{"$f":"Deltagere!D26","v":"hold 1"}]
[null,{"$f":"Deltagere!D27","v":"hold 2"},{"$f":"Deltagere!D30","v":"hold 5"},null,{"$f":"Deltagere!D26","v":"hold 1"},{"$f":"Deltagere!D29","v":"hold 4"}]
[null,{"$f":"Deltagere!D31","v":"hold 6"},{"$f":"Deltagere!D28","v":"hold 3"}]

{"sheet":"5 deltagere","index":3,"n_rows":26,"n_cols":6,"rows_kept":26,"cut":false,"hidden":false,"merged":[[16,1,16,2],[17,1,17,2]]}
{"$rows_empty":16}
[null,{"$f":"Deltagere!D21","v":"U8 Drenge pulje 2"}]
[null,{"$f":"Deltagere!D22","v":"Lørdag den 27. april 2013"}]
[]
[]
[null,"Bane 1",null,null,"Bane 2"]
[null,{"$f":"Deltagere!D26","v":"hold 1"},{"$f":"Deltagere!D27","v":"hold 2"},null,{"$f":"Deltagere!D28","v":"hold 3"},{"$f":"Deltagere!D29","v":"hold 4"}]
[null,{"$f":"Deltagere!D30","v":"hold 5"},{"$f":"Deltagere!D26","v":"hold 1"},null,{"$f":"Deltagere!D27","v":"hold 2"},{"$f":"Deltagere!D28","v":"hold 3"}]
[null,{"$f":"Deltagere!D29","v":"hold 4"},{"$f":"Deltagere!D30","v":"hold 5"},null,{"$f":"Deltagere!D28","v":"hold 3"},{"$f":"Deltagere!D26","v":"hold 1"}]
[null,{"$f":"Deltagere!D27","v":"hold 2"},{"$f":"Deltagere!D30","v":"hold 5"},null,{"$f":"Deltagere!D26","v":"hold 1"},{"$f":"Deltagere!D29","v":"hold 4"}]
[null,{"$f":"Deltagere!D29","v":"hold 4"},{"$f":"Deltagere!D27","v":"hold 2"},null,{"$f":"Deltagere!D30","v":"hold 5"},{"$f":"Deltagere!D28","v":"hold 3"}]

{"sheet":"4 deltagere","index":4,"n_rows":24,"n_cols":6,"rows_kept":24,"cut":false,"hidden":false,"merged":[[16,1,16,2],[17,1,17,2]]}
{"$rows_empty":16}
[null,{"$f":"Deltagere!D21","v":"U8 Drenge pulje 2"}]
[null,{"$f":"Deltagere!D22","v":"Lørdag den 27. april 2013"}]
[]
[]
[null,"Bane 1",null,null,"Bane 2"]
[null,{"$f":"Deltagere!D26","v":"hold 1"},{"$f":"Deltagere!D27","v":"hold 2"},null,{"$f":"Deltagere!D28","v":"hold 3"},{"$f":"Deltagere!D29","v":"hold 4"}]
[null,{"$f":"Deltagere!D26","v":"hold 1"},{"$f":"Deltagere!D28","v":"hold 3"},null,{"$f":"Deltagere!D27","v":"hold 2"},{"$f":"Deltagere!D29","v":"hold 4"}]
[null,{"$f":"Deltagere!D29","v":"hold 4"},{"$f":"Deltagere!D26","v":"hold 1"},null,{"$f":"Deltagere!D28","v":"hold 3"},{"$f":"Deltagere!D27","v":"hold 2"}]